bitfinex-derivatives/quotes_ETHF0:USTF0_20241007
["timestamp","ask_amount","ask_price","bid_price","bid_amount"]
[1728311117405,0.39746,2516.4,2515.0,3.2078]
[1728311117406,3.2078,2516.4,2515.0,3.2078]
[1728311117612,7.5178,2515.6,2515.2,0.39762]
[1728311117802,0.3976,2515.5,2515.0,0.39767]
[1728311117998,0.3976,2515.5,2514.6,0.5927]
[1728311117999,3.2078,2515.3,2514.7,3.2078]
[1728311118299,3.2078,2515.3,2514.4,0.5506]
[1728311118502,3.2078,2515.3,2514.2,3.2078]
[1728311118702,0.39768,2515.0,2514.3,0.39778]
[1728311118915,3.60548,2515.0,2514.3,0.39777]
[1728311119109,3.60548,2515.0,2514.2,3.2078]
[1728311119110,0.3977,2514.9,2514.2,3.60558]
[1728311119306,3.2078,2515.0,2514.5,0.39774]
[1728311119507,3.2078,2515.0,2514.2,3.2078]
[1728311119706,3.60548,2515.0,2514.4,0.39776]
[1728311119906,3.2078,2515.0,2514.2,3.2078]
[1728311120606,3.2078,2515.0,2513.8,0.5506]
[1728311120607,3.2078,2514.8,2514.3,0.39777]
[1728311120807,3.2078,2515.1,2513.9,4.31]
[1728311120999,3.2078,2515.1,2514.4,0.39775]
[1728311121207,3.2078,2515.1,2513.9,7.5178]
[1728311121514,3.60546,2515.1,2514.7,0.39771]
[1728311121720,3.2078,2515.1,2514.0,12.94859681]
[1728311121901,0.39771,2514.8,2514.0,0.39782]
[1728311122206,3.2078,2515.1,2514.1,4.35644337]
[1728311122406,3.2078,2515.1,2513.9,7.5178]
[1728311122605,3.2078,2515.1,2514.0,13.65540444]
[1728311122806,3.2078,2515.1,2514.0,0.99457]
[1728311123002,3.2078,2515.1,2513.8,0.99464]
[1728311123003,0.99425,2514.9,2513.8,0.99464]
[1728311123202,4.31,2515.3,2513.6,7.5178]
[1728311123203,4.20209,2514.8,2513.6,7.5178]
[1728311123409,4.2022,2514.5,2513.6,7.5178]
[1728311123814,3.2078,2514.5,2513.8,0.39785]
[1728311124014,0.39783,2514.1,2513.6,3.2078]
[1728311124208,3.2078,2514.2,2513.6,3.2078]
[1728311124510,0.99454,2514.1,2513.1,0.9949]
[1728311124713,0.39787,2513.8,2513.2,0.39795]
[1728311124915,3.60565,2513.9,2513.2,0.99489]
[1728311125105,3.60565,2513.9,2513.7,0.39786]
[1728311125314,3.60565,2513.9,2513.6,0.39787]
[1728311125510,3.60565,2513.9,2513.6,0.39788]
[1728311125511,0.39786,2513.8,2513.6,0.39788]
[1728311125713,3.2078,2513.9,2513.0,0.5505]
[1728311126014,3.2078,2513.9,2513.1,0.99493]
[1728311126212,0.39788,2513.7,2513.5,0.3979]
[1728311126413,3.2078,2513.9,2513.3,0.39794]
[1728311126414,0.39792,2513.5,2513.3,0.39794]
[1728311126921,0.5753,2513.8,2512.8,3.2078]
[1728311127115,3.2078,2513.6,2512.8,3.2078]
[1728311127417,3.2078,2513.6,2512.9,4.31]
[1728311127613,3.2078,2513.6,2512.9,4.23685368]
[1728311127818,3.2078,2513.6,2513.5,0.39791]
[1728311128009,0.5753,2514.4,2512.8,4.23685368]
[1728311128010,3.2078,2513.9,2512.8,4.23685368]
[1728311128206,3.2078,2513.9,2512.9,3.2078]
[1728311128413,3.2078,2513.9,2513.0,0.39799]
[1728311128414,0.39789,2513.6,2513.0,0.39799]
[1728311128611,0.5753,2514.4,2512.9,4.20281]
[1728311128612,0.39782,2514.1,2513.4,0.99481]
[1728311128810,3.2078,2514.2,2513.2,4.20269]
[1728311129010,0.99454,2514.1,2513.3,0.39794]
[1728311129316,0.3979,2513.6,2512.8,3.2078]
[1728311129514,0.39792,2513.5,2513.2,0.39794]
[1728311129817,3.2078,2513.7,2513.6,0.39789]
[1728311130022,7.58408,2513.7,2513.5,0.3979]
[1728311130314,3.2078,2513.7,2513.6,0.39789]
[1728311130517,3.60568,2513.7,2513.5,0.3979]
[1728311131017,7.58408,2513.7,2513.5,0.3979]
[1728311131207,7.58408,2513.7,2512.9,0.99501]
[1728311131208,7.1862,2513.7,2512.9,0.99501]
[1728311131413,3.2078,2513.7,2512.9,0.99501]
[1728311131613,3.2078,2513.7,2512.7,0.99507]
[1728311131614,3.2078,2513.7,2512.7,7.5178]
[1728311131821,0.3979,2513.6,2513.4,0.39791]
[1728311132011,3.2078,2513.7,2512.6,3.2078]
[1728311132210,3.2078,2513.3,2513.2,0.39795]
[1728311132515,3.2078,2513.3,2513.1,0.39796]
[1728311132707,3.2078,2513.3,2512.2,3.2078]
[1728311132911,3.2078,2513.3,2512.4,0.99521]
[1728311133120,3.2078,2513.3,2512.8,0.39801]
[1728311133319,0.398,2513.0,2512.8,0.39801]
[1728311133519,1.6,2513.5,2512.4,4.31]
[1728311133520,3.2078,2513.2,2512.4,4.31]
[1728311133718,0.6052,2513.5,2512.4,4.31]
[1728311133915,4.20261,2513.4,2513.0,0.39798]
[1728311134213,0.39794,2513.3,2513.1,0.39796]
[1728311134420,3.2078,2513.4,2513.1,0.39796]
[1728311134618,3.2078,2513.4,2513.2,0.39794]
[1728311134619,7.187,2513.4,2513.2,0.39794]
[1728311134806,7.187,2513.4,2512.5,4.20297]
[1728311134807,3.2078,2513.4,2512.5,3.2078]
[1728311135008,3.2078,2513.4,2513.3,0.39794]
[1728311135212,13.1862,2513.4,2512.7,0.99506]
[1728311135410,13.1862,2513.4,2512.5,3.2078]
[1728311135411,3.2078,2513.4,2512.5,3.2078]
[1728311135719,3.2078,2513.4,2512.4,4.31]
[1728311135918,3.2078,2513.4,2512.1,5.1984]
[1728311136120,3.2078,2513.4,2512.3,0.99524]
[1728311136322,3.2078,2513.4,2512.2,12.59585577]
[1728311136522,3.2078,2513.4,2512.1,3.2078]
[1728311136711,0.99485,2513.3,2512.1,3.2078]
[1728311137023,0.39799,2513.0,2512.9,0.39799]
[1728311137218,0.99485,2513.3,2512.3,0.99524]
[1728311137422,0.39801,2512.9,2512.8,0.39802]
[1728311137721,0.39799,2513.0,2512.8,0.39801]
[1728311137920,3.2078,2513.1,2513.0,0.39799]
[1728311138426,3.2078,2513.4,2513.0,3.2078]
[1728311138623,3.2078,2513.7,2513.3,0.39794]
[1728311138818,3.2078,2513.7,2513.6,0.39789]
[1728311139123,0.99447,2514.3,2514.2,0.3978]
[1728311139124,0.39779,2514.3,2514.2,0.3978]
[1728311139324,3.2078,2514.8,2514.0,3.2078]
[1728311139528,3.2078,2514.8,2513.7,4.31]
[1728311139529,0.39772,2514.7,2513.9,0.99461]
[1728311139717,3.2078,2514.8,2513.7,0.99466]
[1728311139914,0.5715,2514.7,2513.7,4.31]
[1728311140119,0.5715,2514.7,2513.9,0.99461]
[1728311140424,0.39779,2514.3,2514.1,0.3978]
[1728311140718,0.39779,2514.3,2513.6,4.20249]
[1728311140719,0.39777,2514.4,2514.2,0.39779]
[1728311140923,0.3978,2514.2,2514.0,0.39782]
[1728311141326,0.39786,2513.8,2513.6,0.39788]
[1728311141521,0.39786,2513.8,2512.1,1.99063]
[1728311141522,6.99466,2513.8,2512.6,1.1238]
[1728311141822,4.82056,2514.1,2512.8,3.2078]
[1728311142031,3.826,2514.1,2513.1,0.99493]
[1728311142221,3.826,2514.1,2513.3,0.99483]
[1728311142421,3.60561,2514.1,2513.5,0.99475]
[1728311142721,0.39779,2514.3,2514.1,0.3978]
[1728311143019,3.2078,2514.4,2513.6,0.9947]
[1728311143225,0.39784,2514.0,2513.5,0.5616]
[1728311143417,0.39778,2514.3,2514.1,0.3978]
[1728311143614,0.3978,2514.2,2514.1,0.39781]
[1728311143817,3.9776,2514.2,2514.0,0.39781]
[1728311144022,0.99446,2514.3,2513.5,0.5616]
[1728311144221,4.31,2513.6,2512.5,3.2078]
[1728311144437,3.2078,2512.9,2512.3,0.39808]
[1728311144622,3.2078,2512.9,2512.0,0.39813]
[1728311144824,3.2078,2512.9,2512.2,0.3981]
[1728311145025,3.60581,2512.9,2512.1,0.39812]
[1728311145221,3.2078,2512.9,2512.1,0.39813]
[1728311145526,3.2078,2512.9,2512.0,0.39814]
[1728311145527,3.60581,2512.9,2512.0,0.39814]
[1728311145830,3.60581,2512.9,2511.8,3.2078]
[1728311145831,3.2078,2512.9,2511.8,3.2078]
[1728311146126,3.2078,2512.9,2511.9,0.39816]
[1728311146318,3.2078,2512.9,2511.8,3.2078]
[1728311146520,3.60581,2512.9,2511.9,0.39815]
[1728311146723,0.39804,2512.7,2511.8,3.2078]
[1728311146919,3.2078,2512.9,2511.7,4.31]
[1728311147122,0.39806,2512.5,2511.6,0.6002]
[1728311147322,0.39812,2512.2,2511.6,0.6002]
[1728311147729,3.2078,2512.3,2511.3,0.594]
[1728311148126,0.39814,2512.1,2511.3,0.594]
[1728311148529,0.39815,2512.0,2511.3,0.594]
[1728311148919,3.60595,2512.0,2511.3,0.594]
[1728311149219,3.2078,2512.0,2511.3,0.594]
[1728311149616,0.39818,2511.8,2511.3,0.594]
[1728311149828,0.39821,2511.6,2511.1,3.2078]
[1728311150031,3.60602,2511.6,2511.1,3.2078]
[1728311150219,3.2078,2511.6,2511.1,3.2078]
[1728311150530,0.39827,2511.2,2510.8,3.8068]
[1728311150728,0.39828,2511.2,2510.6,1.00906]
[1728311151033,3.2078,2511.6,2510.6,0.6107]
[1728311151034,0.39829,2511.1,2510.6,0.6107]
[1728311151529,3.2078,2511.3,2510.5,3.2078]
[1728311152219,3.2078,2510.9,2510.2,3.2078]
[1728311152435,0.39837,2510.6,2510.2,3.2078]
[1728311153023,0.39841,2510.3,2509.8,3.60629]
[1728311153330,0.99591,2510.7,2509.8,3.60629]
[1728311153527,4.20362,2510.9,2509.8,3.2078]
[1728311153723,4.20362,2510.9,2509.5,0.5653]
[1728311153724,0.39832,2510.9,2510.4,0.39839]
[1728311153930,3.2078,2511.2,2510.4,0.39839]
[1728311154326,0.39829,2511.1,2510.5,0.39837]
[1728311154522,0.39831,2511.0,2510.1,3.2078]
[1728311154727,3.2078,2511.2,2510.4,0.39839]
[1728311154924,0.39833,2510.9,2510.3,0.3984]
[1728311155124,3.2078,2511.2,2510.1,3.2078]
[1728311155429,3.2078,2511.2,2507.8,3.2078]
[1728311155430,0.3987,2508.5,2507.8,3.2078]
[1728311155626,0.39887,2507.5,2507.0,0.16537876]
[1728311155824,3.2078,2507.9,2507.1,3.9888]
[1728311156033,3.2078,2507.9,2507.5,8.64951409]
[1728311156230,3.2078,2507.9,2507.5,3.2078]
[1728311156426,3.2078,2507.9,2507.5,0.39885]
[1728311156628,3.2078,2507.9,2507.3,0.39888]
[1728311156629,7.1958,2507.9,2507.3,0.39888]
[1728311156829,7.1958,2507.9,2506.9,3.7897]
[1728311156830,3.2078,2507.9,2506.9,3.7897]
[1728311157029,3.2078,2507.9,2507.0,8.56787011]
[1728311157734,3.6066,2507.9,2507.2,0.3989]
[1728311158038,0.39882,2507.8,2506.9,3.2078]
[1728311158223,3.2078,2507.9,2506.9,3.2078]
[1728311158429,3.2078,2507.9,2507.3,0.39889]
[1728311158724,3.2078,2507.9,2506.9,3.2078]
[1728311158725,3.2078,2507.9,2507.0,0.39894]
[1728311159232,3.2078,2507.9,2507.0,0.39893]
[1728311159439,3.2078,2507.9,2506.9,3.2078]
[1728311159635,4.4177,2508.4,2507.1,4.61507977]
[1728311159944,4.4177,2508.4,2507.5,0.39885]
[1728311159945,4.31,2508.3,2507.5,0.39885]
[1728311160238,3.2078,2508.8,2507.5,3.2078]
[1728311160436,3.2078,2508.8,2508.2,0.39874]
[1728311160643,3.2078,2508.5,2508.2,0.39874]
[1728311160838,3.2078,2508.5,2507.6,12.83816453]
[1728311161135,3.2078,2508.5,2507.9,0.39879]
[1728311161435,3.2078,2508.5,2507.5,3.2078]
[1728311161743,3.4068,2509.8,2508.3,5.30684]
[1728311162033,3.4068,2509.8,2508.9,3.2078]
[1728311162034,3.2078,2509.8,2508.9,3.2078]
[1728311162234,3.2078,2509.8,2508.4,13.48351738]
[1728311162435,3.2078,2509.8,2508.3,21.47538344]
[1728311162628,7.5178,2509.5,2508.8,4.27973412]
[1728311162832,3.2078,2509.7,2508.8,4.31]
[1728311163025,3.2078,2510.1,2508.7,3.2078]
[1728311163231,3.2078,2510.1,2508.9,4.2744136]
[1728311163435,3.2078,2509.8,2509.5,0.39853]
[1728311163638,3.2078,2509.8,2509.6,0.39852]
[1728311163834,3.2078,2509.8,2509.0,0.99655]
[1728311164025,3.2078,2509.8,2509.0,7.4822136]
[1728311164227,3.2078,2509.8,2509.0,3.2078]
[1728311164429,3.2078,2509.8,2509.7,0.39851]
[1728311164634,3.2078,2509.8,2509.4,3.2078]
[1728311164926,3.2078,2509.8,2508.5,0.5917]
[1728311164927,3.2078,2509.8,2508.5,22.19659963]
[1728311165130,3.2078,2509.8,2508.5,3.7995]
[1728311165342,3.2078,2509.5,2508.7,11.03700188]
[1728311165545,0.601,2510.8,2508.8,0.99664]
[1728311165546,3.2078,2510.0,2508.8,0.99664]
[1728311165728,3.2078,2510.0,2508.9,3.2078]
[1728311165929,3.2078,2510.6,2509.5,0.99635]
[1728311166232,3.2078,2510.6,2509.6,4.20409]
[1728311166429,3.2078,2510.6,2509.6,8.54492692]
[1728311166638,3.2078,2510.6,2510.3,0.39841]
[1728311166835,3.2078,2510.6,2509.9,4.60248]
[1728311167031,3.2078,2510.6,2510.4,0.3984]
[1728311167235,1.60406,2511.8,2510.4,0.3984]
[1728311167236,3.2078,2511.5,2510.4,3.2078]
[1728311167440,3.2078,2511.5,2510.5,0.99596]
[1728311167740,3.2078,2511.5,2511.2,0.39826]
[1728311168040,3.2078,2511.5,2511.1,0.39828]
[1728311168241,3.2078,2511.5,2511.2,0.39826]
[1728311168636,3.2078,2511.7,2511.4,0.39824]
[1728311168938,0.99511,2512.7,2510.7,0.99588]
[1728311168939,3.2078,2512.1,2510.8,3.2078]
[1728311169137,3.2078,2511.8,2511.2,0.39826]
[1728311169343,3.2078,2511.8,2511.3,0.39825]
[1728311169543,3.2078,2511.8,2510.8,0.99584]
[1728311169738,3.2078,2511.8,2511.5,0.39821]
[1728311169945,3.2078,2511.8,2511.4,0.39823]
[1728311170139,3.2078,2511.8,2510.9,4.2036]
[1728311170140,3.2078,2511.8,2510.9,3.2078]
[1728311170341,3.2078,2512.2,2511.6,0.39819]
[1728311170548,2.23647,2513.1,2511.0,4.31]
[1728311170549,3.2078,2513.3,2512.0,3.2078]
[1728311170835,0.199,2513.7,2511.8,4.31]
[1728311170836,0.199,2513.5,2513.3,0.39794]
[1728311171040,3.2078,2513.4,2512.8,4.31]
[1728311171429,3.2078,2513.4,2512.5,3.2078]
[1728311171940,3.2078,2513.4,2513.0,0.39798]
[1728311172135,3.2078,2513.4,2512.5,3.2078]
[1728311172638,2.61054933,2513.4,2513.3,0.39794]
[1728311172843,3.2078,2514.2,2513.9,0.39783]
[1728311173036,3.2078,2514.2,2513.3,3.60574]
[1728311173037,3.2078,2514.2,2513.3,3.2078]
[1728311173538,0.39784,2513.9,2513.3,0.39793]
[1728311173733,3.2078,2514.2,2512.8,3.2078]
[1728311174040,3.2078,2513.9,2512.8,3.2078]
[1728311174248,0.39787,2513.8,2513.2,0.39794]
[1728311174540,3.60565,2513.9,2512.8,3.2078]
[1728311174844,3.60565,2513.9,2513.3,0.39793]
[1728311175347,3.2078,2513.9,2512.9,4.1814946]
[1728311175641,3.2078,2513.9,2512.8,3.2078]
[1728311175850,0.39792,2513.5,2512.9,0.39799]
[1728311176143,0.39792,2513.5,2512.8,3.2078]
[1728311176144,3.2078,2513.6,2512.8,3.2078]
[1728311176641,3.2078,2513.6,2512.9,0.39799]
[1728311176642,0.39792,2513.5,2512.9,0.39799]
[1728311176841,3.2078,2513.6,2512.8,3.2078]
[1728311177037,0.39797,2513.1,2512.6,0.39803]
[1728311177239,40.8,2514.4,2512.6,0.39804]
[1728311177240,0.39795,2513.2,2512.6,0.39804]
[1728311177445,3.2078,2513.3,2512.0,3.2078]
[1728311177649,3.2078,2513.3,2512.3,3.2078]
[1728311178145,0.39795,2513.2,2512.6,0.39804]
[1728311178343,0.9949,2513.2,2512.4,0.39807]
[1728311178543,0.398,2513.0,2512.4,0.39807]
[1728311178740,7.187,2513.3,2512.0,7.76806027]
[1728311178939,3.2078,2513.0,2512.0,3.2078]
[1728311179645,0.39802,2512.8,2512.3,0.39809]
[1728311179845,0.39802,2512.8,2512.0,3.2078]
[1728311180141,0.39802,2512.8,2512.3,0.39809]
[1728311180338,3.2078,2513.0,2512.0,3.2078]
[1728311180841,0.39804,2512.7,2512.0,3.2078]
[1728311181050,0.39804,2512.7,2512.2,0.3981]
[1728311181449,0.39806,2512.6,2512.2,0.3981]
[1728311181652,4.20277,2513.0,2512.1,0.39812]
[1728311181653,0.39807,2512.5,2512.1,0.39812]
[1728311181953,0.39813,2512.1,2511.7,0.39819]
[1728311182141,3.2078,2512.4,2511.2,3.2078]
[1728311182343,3.2078,2512.1,2511.2,3.2078]
[1728311182649,4.31,2512.4,2511.3,0.39825]
[1728311182650,0.3982,2511.7,2511.3,0.39825]
[1728311182852,0.39823,2511.5,2511.1,0.39828]
[1728311183050,3.2078,2511.8,2510.7,3.2078]
[1728311183348,3.2078,2511.8,2511.6,0.3982]
[1728311183547,3.2078,2511.8,2511.0,3.2078]
[1728311183736,0.3982,2511.7,2511.0,3.2078]
[1728311183940,0.39823,2511.5,2511.1,0.39828]
[1728311184142,3.2078,2511.8,2511.0,3.2078]
[1728311184351,0.99549,2511.7,2511.0,0.3983]
[1728311184545,0.99549,2511.7,2510.6,4.31]
[1728311184742,0.39827,2511.3,2510.7,0.39835]
[1728311184950,3.2078,2511.5,2510.6,4.31]
[1728311185251,0.3983,2511.1,2510.8,0.39833]
[1728311185450,3.2078,2511.5,2510.6,4.31]
[1728311185749,3.2078,2511.5,2511.3,0.39825]
[1728311185941,3.2078,2511.5,2511.4,0.39824]
[1728311186348,3.2078,2511.5,2510.9,4.28152333]
[1728311186744,40.8,2512.2,2510.6,4.31]
[1728311186745,3.2078,2511.8,2511.0,3.2078]
[1728311186943,4.20328,2511.8,2511.2,0.39827]
[1728311187144,0.39819,2511.7,2511.2,0.39827]
[1728311187448,4.20328,2511.8,2510.6,5.30589]
[1728311187449,7.1894,2511.8,2510.6,7.5178]
[1728311187656,0.39826,2511.3,2510.6,7.5178]
[1728311187849,3.2078,2511.5,2510.6,7.5178]
[1728311188152,0.39824,2511.4,2510.7,0.99588]
[1728311188357,3.2078,2511.5,2510.6,7.5178]
[1728311188358,3.2078,2511.5,2510.6,3.2078]
[1728311188653,0.3983,2511.1,2510.8,0.39833]
[1728311188853,0.3983,2511.1,2510.9,0.39831]
[1728311189159,0.3983,2511.1,2510.8,0.39833]
[1728311189542,0.39828,2511.2,2510.9,0.39832]
[1728311189846,3.2078,2511.5,2510.4,4.33428188]
[1728311190047,3.2078,2511.5,2510.9,0.39831]
[1728311190048,0.39828,2511.2,2510.9,0.39831]
[1728311190254,0.39829,2511.1,2510.8,0.39832]
[1728311190553,0.39829,2511.1,2510.8,0.39833]
[1728311191054,3.2078,2511.5,2510.6,7.5178]
[1728311191246,0.39825,2511.4,2510.6,7.5178]
[1728311191450,3.2078,2511.5,2510.6,8.5137]
[1728311191852,0.39826,2511.3,2511.1,0.39828]
[1728311192550,0.39828,2511.2,2511.0,0.39829]
[1728311192747,3.2078,2511.5,2510.9,0.39831]
[1728311192748,0.39829,2511.1,2510.9,0.39831]
[1728311192945,0.39828,2511.2,2511.0,0.39829]
[1728311193155,0.99561,2511.4,2510.9,0.39831]
[1728311193449,0.99561,2511.4,2509.8,0.91265776]
[1728311193450,3.2078,2511.1,2510.2,3.2078]
[1728311193655,3.2078,2511.1,2510.5,0.39837]
[1728311193656,0.9958,2510.9,2510.5,0.39837]
[1728311193855,0.9958,2510.9,2510.2,3.2078]
[1728311194060,0.3984,2510.4,2509.8,4.20402]
[1728311194256,0.99588,2510.7,2510.2,0.39842]
[1728311194444,0.99592,2510.6,2510.2,0.39842]
[1728311194643,3.2078,2510.8,2509.8,3.2078]
[1728311194644,7.191,2510.8,2510.3,0.3984]
[1728311194848,3.2078,2510.8,2510.3,0.3984]
[1728311195047,0.39842,2510.3,2510.2,0.39843]
[1728311195245,3.2078,2510.5,2509.5,0.99633]
[1728311195545,3.2078,2510.2,2509.8,0.39849]
[1728311195745,3.2078,2510.2,2509.3,0.99644]
[1728311195944,0.99616,2510.0,2509.6,0.39852]
[1728311196159,0.99616,2510.0,2509.2,0.99648]
[1728311196453,0.39847,2510.0,2509.8,0.39848]
[1728311196647,5.69,2510.2,2509.3,7.5178]
[1728311196648,4.6939,2510.2,2509.3,7.5178]
[1728311196852,3.2078,2510.2,2510.1,0.39845]
[1728311197248,0.39839,2510.5,2509.8,0.99621]
[1728311197443,0.3984,2510.4,2510.2,0.39842]
[1728311197648,0.39841,2510.3,2510.2,0.39842]
[1728311198158,4.38241,2510.3,2510.2,0.39842]
[1728311198853,4.38241,2510.3,2509.6,8.51411]
[1728311198854,3.984,2510.3,2509.6,8.51411]
[1728311199053,0.99592,2510.6,2509.6,3.2078]
[1728311199054,0.39844,2510.2,2509.6,3.2078]
[1728311199247,0.39844,2510.2,2510.0,0.39845]
[1728311199447,0.39842,2510.3,2509.7,0.99628]
[1728311199652,0.39842,2510.3,2510.1,0.39843]
[1728311199853,0.39843,2510.2,2509.7,0.99628]
[1728311200054,0.39846,2510.1,2509.9,0.39847]
[1728311200254,3.2078,2510.4,2509.9,0.39847]
[1728311200558,0.39864,2508.9,2508.2,3.36755268]
[1728311200752,3.2078,2508.7,2508.1,0.39875]
[1728311200956,3.2078,2508.7,2508.0,0.39878]
[1728311201257,3.60648,2508.7,2507.8,3.60661]
[1728311201463,0.39869,2508.6,2507.8,3.2078]
[1728311201659,0.39869,2508.6,2507.7,0.39882]
[1728311201866,3.2078,2508.7,2507.4,1.474]
[1728311202167,3.2078,2508.4,2506.8,3.2078]
[1728311202357,3.2078,2508.1,2507.0,0.39893]
[1728311202553,0.3988,2507.9,2507.0,0.39893]
[1728311202765,0.3988,2507.9,2506.8,3.2078]
[1728311203061,0.39879,2508.0,2506.8,3.2078]
[1728311203361,0.39879,2508.0,2507.1,0.39892]
[1728311203362,0.39878,2508.0,2507.1,0.39892]
[1728311203565,3.60657,2508.1,2507.2,0.39891]
[1728311203857,0.39878,2508.0,2507.2,0.3989]
[1728311204066,3.2078,2508.1,2506.8,3.2078]
[1728311204255,0.3988,2507.9,2507.1,0.39892]
[1728311204471,0.39879,2508.0,2506.8,3.2078]
[1728311204663,0.39878,2508.0,2507.2,0.39889]
[1728311204854,0.39878,2508.0,2507.3,0.39889]
[1728311205367,3.2078,2508.1,2507.4,3.2078]
[1728311205368,3.60657,2508.1,2507.4,3.2078]
[1728311205560,0.39873,2508.3,2507.6,0.39883]
[1728311205761,0.39874,2508.3,2507.7,0.39882]
[1728311205960,0.39874,2508.3,2507.4,3.2078]
[1728311206168,0.39876,2508.2,2507.6,0.39883]
[1728311206463,0.39874,2508.3,2507.8,0.39881]
[1728311206669,3.2078,2508.4,2507.7,0.39881]
[1728311206866,0.39875,2508.2,2507.8,0.39881]
[1728311207172,3.2078,2508.4,2507.6,0.39884]
[1728311207173,0.39879,2508.0,2507.6,0.39884]
[1728311207462,3.2078,2508.4,2507.4,4.32496]
[1728311207666,3.2078,2508.1,2507.4,3.9261]
[1728311207856,0.39883,2507.7,2507.4,4.32497]
[1728311208162,0.39886,2507.5,2507.4,3.2078]
[1728311208359,0.3989,2507.3,2507.0,0.39893]
[1728311208754,0.8157549,2507.5,2507.0,0.39893]
[1728311208960,0.8157549,2507.5,2506.6,3.2078]
[1728311208961,3.2078,2507.6,2507.1,0.39892]
[1728311209166,3.2078,2507.6,2506.6,3.2078]
[1728311209462,0.39895,2507.0,2506.7,0.39897]
[1728311209670,4.20506,2507.3,2506.6,3.60679]
[1728311209868,0.39896,2506.9,2506.6,3.2078]
[1728311210065,3.2078,2507.3,2506.6,3.2078]
[1728311210264,0.99727,2507.2,2506.6,3.2078]
[1728311210468,0.39896,2506.9,2506.6,3.2078]
[1728311210667,3.2078,2507.3,2506.6,3.2078]
[1728311210966,0.39895,2507.0,2506.6,3.60679]
[1728311211168,0.39897,2506.8,2506.5,0.39901]
[1728311211359,0.39895,2507.0,2506.6,0.399]
[1728311211559,0.39895,2507.0,2506.4,0.39903]
[1728311211864,0.99739,2506.9,2506.3,3.2078]
[1728311212062,0.39897,2506.8,2506.5,0.39901]
[1728311212268,3.60675,2507.0,2506.6,0.39899]
[1728311212467,0.39899,2506.7,2506.4,0.39903]
[1728311212667,3.2078,2507.0,2506.3,3.2078]
[1728311212860,0.39903,2506.5,2506.1,0.39907]
[1728311213065,0.39903,2506.5,2506.2,0.39906]
[1728311213260,0.39905,2506.4,2505.9,0.7459]
[1728311213470,3.2078,2506.0,2505.5,3.2078]
[1728311213658,2.20936221,2506.0,2505.5,3.2078]
[1728311213859,0.39916,2505.7,2505.5,3.2078]
[1728311214161,0.99779,2505.9,2505.3,0.3992]
[1728311214162,3.9912,2505.9,2505.3,3.2078]
[1728311214362,3.9912,2505.9,2504.6,4.31]
[1728311214363,3.2078,2505.9,2504.9,3.2078]
[1728311214667,3.60693,2505.9,2505.4,0.39918]
[1728311214971,3.60692,2505.9,2505.5,0.39917]
[1728311215170,3.2078,2505.9,2505.0,5.30815]
[1728311215369,3.2078,2505.9,2505.2,4.20587]
[1728311215574,3.2078,2505.9,2505.7,0.39914]
[1728311215766,3.2078,2505.9,2505.2,4.20587]
[1728311215767,3.2078,2505.9,2505.2,3.2078]
[1728311215960,0.39915,2505.7,2505.2,3.60698]
[1728311216159,0.39915,2505.7,2505.2,3.2078]
[1728311216160,0.99777,2505.7,2505.2,3.2078]
[1728311216363,4.31,2505.8,2505.2,3.2078]
[1728311216571,0.39913,2505.6,2505.2,3.2078]
[1728311216874,3.2078,2505.3,2504.9,3.2078]
[1728311217070,3.2078,2505.6,2505.2,0.39918]
[1728311217375,3.2078,2505.6,2505.4,0.39915]
[1728311217572,3.2078,2505.6,2505.5,0.39914]
[1728311217775,0.39911,2505.7,2505.3,0.39916]
[1728311217971,3.2078,2506.0,2505.2,3.2078]
[1728311218173,0.39909,2505.8,2505.2,3.2078]
[1728311218471,3.2078,2506.0,2505.2,3.2078]
[1728311218472,5.30769,2505.9,2505.2,3.2078]
[1728311218770,0.99773,2505.8,2505.2,3.2078]
[1728311218975,0.39914,2505.5,2505.2,3.2078]
[1728311219170,3.2078,2506.0,2505.3,1.3971]
[1728311219374,3.2078,2506.3,2505.8,0.39909]
[1728311219575,3.2078,2506.3,2505.8,0.39908]
[1728311219775,3.60681,2506.3,2505.9,0.39906]
[1728311220077,0.99729,2507.0,2506.3,0.399]
[1728311220078,3.60675,2506.7,2506.3,0.399]
[1728311220266,1.96588,2506.5,2506.1,3.60683]
[1728311220468,3.2078,2507.0,2506.1,3.2078]
[1728311220874,3.2078,2507.0,2506.7,0.39893]
[1728311221166,0.39891,2507.0,2506.6,0.39895]
[1728311221376,0.39891,2507.0,2506.1,0.99759]
[1728311221377,0.3989,2507.0,2506.7,0.39894]
[1728311221574,0.99718,2507.2,2506.2,3.2078]
[1728311222077,3.2078,2507.0,2505.9,3.2078]
[1728311222278,0.99737,2506.8,2505.9,3.2078]
[1728311222579,3.2078,2507.0,2506.2,3.2078]
[1728311222780,0.39888,2507.2,2506.9,0.39891]
[1728311223075,1.5133,2507.3,2506.5,3.2078]
[1728311223076,1.5133,2507.3,2506.6,0.99741]
[1728311223274,3.2078,2507.5,2506.7,0.99735]
[1728311223476,3.2078,2507.5,2507.1,3.2078]
[1728311223675,3.60663,2507.5,2507.3,0.39885]
[1728311223880,3.60663,2507.5,2506.8,4.20509]
[1728311223881,0.39884,2507.4,2507.2,0.39885]
[1728311224069,3.2078,2507.5,2506.8,3.2078]